bitfinex/quotes_BTCUSD_20250123
["timestamp","ask_amount","ask_price","bid_price","bid_amount"]
[1737667896082,0.082905,102520.0,102510.0,0.247551]
[1737667896294,0.14120729,102520.0,102510.0,0.247551]
[1737667896498,0.04386,102520.0,102510.0,0.247551]
[1737667898348,0.04346,102520.0,102510.0,0.247551]
[1737667898797,0.04346,102520.0,102510.0,0.250551]
[1737667899180,0.04346,102520.0,102510.0,0.247551]
[1737667899606,0.141001,102520.0,102510.0,0.152]
[1737667900055,0.29442893,102520.0,102510.0,0.002]
[1737667900519,0.23834829,102520.0,102510.0,0.002]
[1737667901348,0.33134829,102520.0,102510.0,0.002]
[1737667901547,0.44081365,102520.0,102510.0,0.002]
[1737667901764,0.59081365,102520.0,102510.0,0.002]
[1737667901977,0.05,102510.0,102500.0,0.0001427]
[1737667902183,0.09758,102480.0,102470.0,0.0154258]
[1737667902806,0.390256,102500.0,102470.0,0.1654258]
[1737667903023,0.24414671,102520.0,102490.0,0.15]
[1737667903226,0.141004,102520.0,102510.0,0.097551]
[1737667903432,0.097551,102510.0,102500.0,0.247553]
[1737667903654,0.097551,102510.0,102500.0,0.15]
[1737667903922,0.292664,102510.0,102490.0,0.241727]
[1737667904128,0.292664,102510.0,102500.0,0.09756]
[1737667905038,0.292664,102510.0,102490.0,0.3713157]
[1737667905039,0.487785,102510.0,102490.0,0.3713157]
[1737667905297,0.292669,102510.0,102490.0,0.2737487]
[1737667905466,0.58513129,102510.0,102490.0,0.339292]
[1737667906010,0.19558095,102520.0,102490.0,0.339292]
[1737667906011,0.00048995,102520.0,102500.0,0.15]
[1737667906219,0.00048995,102520.0,102510.0,0.247551]
[1737667907635,0.00048995,102520.0,102510.0,0.53799829]
[1737667907838,0.00048995,102520.0,102510.0,0.53681539]
[1737667908040,0.00029968,102540.0,102530.0,0.02]
[1737667908248,0.00039503,102540.0,102530.0,0.21487929]
[1737667908453,0.00039503,102540.0,102530.0,0.36385853]
[1737667908669,0.00039503,102540.0,102530.0,0.48445853]
[1737667908885,0.00039503,102540.0,102530.0,0.55995853]
[1737667909087,0.00039503,102540.0,102530.0,0.53485533]
[1737667909709,0.00039503,102540.0,102530.0,0.53457594]
[1737667909914,0.00039503,102540.0,102530.0,0.48457594]
[1737667910121,0.00039503,102540.0,102530.0,0.53457594]
[1737667910337,0.00039503,102540.0,102530.0,0.4685967]
[1737667910955,0.00039503,102540.0,102530.0,0.48757594]
[1737667911381,0.00039503,102540.0,102530.0,0.53757594]
[1737667911587,0.00039503,102540.0,102530.0,0.47407113]
[1737667911788,0.00039503,102540.0,102530.0,0.22672384]
[1737667912004,0.09893779,102540.0,102530.0,0.003]
[1737667912200,0.00102076,102530.0,102510.0,0.3744797]
[1737667912409,0.00102076,102530.0,102510.0,0.56642767]
[1737667912410,0.09856176,102520.0,102510.0,0.56642767]
[1737667912614,0.2926,102530.0,102520.0,0.15641855]
[1737667912817,0.00102076,102520.0,102510.0,0.14609595]
[1737667913023,0.19488829,102520.0,102510.0,0.00660198]
[1737667913435,0.09856176,102520.0,102510.0,0.10415298]
[1737667913648,0.29462476,102530.0,102510.0,0.32915728]
[1737667913852,0.29399879,102540.0,102520.0,0.487697]
[1737667914055,0.19646879,102540.0,102520.0,0.195074]
[1737667914266,0.48905079,102540.0,102520.0,0.49410055]
[1737667914466,0.39152479,102540.0,102520.0,0.00641855]
[1737667914668,0.48887208,102540.0,102520.0,0.00641855]
[1737667914810,0.19487929,102530.0,102520.0,0.00641855]
[1737667915625,0.19587929,102530.0,102520.0,0.00641855]
[1737667916110,0.19690005,102530.0,102520.0,0.00641855]
[1737667916272,0.19487929,102530.0,102520.0,0.00641855]
[1737667916446,0.20037877,102530.0,102520.0,0.00641855]
[1737667916669,0.20137877,102530.0,102520.0,0.00641855]
[1737667917225,0.20037877,102530.0,102520.0,0.00641855]
[1737667917450,0.20137877,102530.0,102520.0,0.00641855]
[1737667918530,0.20037877,102530.0,102520.0,0.00641855]
[1737667918986,0.20137877,102530.0,102520.0,0.00641855]
[1737667919150,0.001,102530.0,102520.0,0.10395955]
[1737667919357,0.19590005,102530.0,102520.0,0.00641855]
[1737667919576,0.19587929,102530.0,102520.0,0.00641855]
[1737667920291,0.19487929,102530.0,102520.0,0.00641855]
[1737667920496,0.19587929,102530.0,102520.0,0.00641855]
[1737667920927,0.10007645,102520.0,102510.0,0.0455427]
[1737667921181,0.33268191,102520.0,102470.0,0.0197442]
[1737667921397,0.176028,102440.0,102430.0,0.00091605]
[1737667921610,0.206047,102420.0,102410.0,0.0001428]
[1737667921823,0.1766517,102420.0,102410.0,0.0001428]
[1737667922040,0.26140368,102420.0,102410.0,0.0001428]
[1737667922251,0.29639429,102420.0,102410.0,0.0001428]
[1737667922467,0.29639429,102420.0,102410.0,0.02379274]
[1737667922468,0.15575729,102420.0,102410.0,0.02379274]
[1737667922683,0.19498429,102420.0,102410.0,0.02379274]
[1737667922887,0.11734729,102420.0,102410.0,0.02918224]
[1737667923095,0.19498429,102420.0,102410.0,0.02428269]
[1737667923544,0.21998429,102420.0,102410.0,0.02428269]
[1737667923762,0.249056,102410.0,102400.0,0.00092081]
[1737667923983,0.27640329,102410.0,102400.0,4.4e-07]
[1737667924197,0.52061885,102410.0,102400.0,4.4e-07]
[1737667924400,0.56447885,102410.0,102400.0,4.4e-07]
[1737667924616,0.47026329,102410.0,102400.0,4.4e-07]
[1737667925239,0.43107968,102410.0,102400.0,4.4e-07]
[1737667925443,0.48107968,102410.0,102400.0,4.4e-07]
[1737667925649,0.43107968,102410.0,102400.0,4.4e-07]
[1737667925883,0.43307968,102410.0,102400.0,4.4e-07]
[1737667926085,0.50307968,102410.0,102400.0,4.4e-07]
[1737667926289,0.27807968,102410.0,102400.0,4.4e-07]
[1737667926498,0.25807968,102410.0,102400.0,4.4e-07]
[1737667926706,0.26007968,102410.0,102400.0,4.4e-07]
[1737667926911,0.24085329,102410.0,102400.0,4.4e-07]
[1737667927968,0.32357395,102410.0,102400.0,4.4e-07]
[1737667928173,0.24085329,102410.0,102400.0,4.4e-07]
[1737667928348,0.24022254,102410.0,102400.0,4.4e-07]
[1737667928763,0.23822254,102410.0,102400.0,4.4e-07]
[1737667929175,0.33122254,102410.0,102400.0,4.4e-07]
[1737667929380,0.42369094,102410.0,102400.0,4.4e-07]
[1737667929587,0.28122254,102410.0,102400.0,4.4e-07]
[1737667929853,0.33122254,102410.0,102400.0,4.4e-07]
[1737667930521,0.28122254,102410.0,102400.0,4.4e-07]
[1737667930758,0.23822254,102410.0,102400.0,4.4e-07]
[1737667930986,0.06386,102410.0,102400.0,4.4e-07]
[1737667931195,0.06386,102410.0,102400.0,0.09765644]
[1737667931396,0.161506,102410.0,102400.0,4.4e-07]
[1737667931887,0.23885329,102410.0,102400.0,4.4e-07]
[1737667932667,0.25885329,102410.0,102400.0,4.4e-07]
[1737667933061,0.06386,102410.0,102400.0,0.24765644]
[1737667933261,0.04386,102410.0,102400.0,0.24765644]
[1737667933791,0.04386,102410.0,102400.0,0.29365644]
[1737667934767,0.04386,102410.0,102400.0,0.39100373]
[1737667935122,0.04386,102410.0,102400.0,0.44100373]
[1737667935891,0.04386,102410.0,102400.0,0.29465644]
[1737667936169,0.04386,102410.0,102400.0,0.29365644]
[1737667936576,0.04386,102410.0,102400.0,0.29465644]
[1737667937449,0.04386,102410.0,102400.0,0.44200373]
[1737667937648,0.00078945,102420.0,102410.0,0.297646]
[1737667937855,0.00078945,102420.0,102410.0,0.247646]
[1737667938071,0.09843045,102420.0,102400.0,0.43659444]
[1737667938292,0.11843045,102420.0,102400.0,0.43659444]
[1737667938493,0.02078945,102420.0,102410.0,0.247646]
[1737667939116,0.00078945,102420.0,102410.0,0.39499329]
[1737667939349,0.00078945,102420.0,102410.0,0.47189329]
[1737667939759,0.00078945,102420.0,102410.0,0.42389329]
[1737667940363,0.00078945,102420.0,102410.0,0.326546]
[1737667940582,0.00078945,102420.0,102410.0,0.324546]
[1737667940696,0.00078945,102420.0,102410.0,0.0789]
[1737667940898,0.11842645,102420.0,102410.0,0.002]
[1737667941533,0.00078945,102420.0,102410.0,0.249646]
[1737667941941,0.00078945,102420.0,102410.0,0.247646]
[1737667942461,0.00078945,102420.0,102410.0,0.249646]
[1737667942627,0.00078945,102420.0,102410.0,0.34799329]
[1737667944017,0.00078945,102420.0,102410.0,0.34699329]
[1737667944476,0.00078945,102420.0,102410.0,0.35099329]
[1737667945451,0.00078945,102420.0,102410.0,0.34899329]
[1737667945648,0.00078945,102420.0,102410.0,0.34499329]
[1737667945852,0.00078945,102420.0,102410.0,0.34599329]
[1737667946026,0.00078945,102420.0,102410.0,0.47549329]
[1737667947157,0.00078945,102420.0,102410.0,0.96370329]
[1737667947362,0.117595,102470.0,102460.0,0.097599]
[1737667947562,0.02,102470.0,102460.0,0.74549724]
[1737667947770,0.215153,102490.0,102470.0,0.15]
[1737667947981,0.312689,102500.0,102480.0,0.097573]
[1737667948124,0.312689,102500.0,102490.0,0.09757]
[1737667948125,0.039055,102500.0,102490.0,0.09757]
[1737667948357,0.039055,102500.0,102490.0,0.53530689]
[1737667948358,0.11756,102500.0,102490.0,0.53530689]
[1737667949206,0.11756,102500.0,102490.0,0.63287689]
[1737667949410,0.026,102500.0,102490.0,0.63287689]
[1737667949886,0.025,102500.0,102490.0,0.63287689]
[1737667950334,0.005,102500.0,102490.0,0.78287689]
[1737667950614,0.00029989,102520.0,102510.0,0.097551]
[1737667950769,0.00029989,102520.0,102510.0,0.1073109]
[1737667950966,0.00029989,102520.0,102510.0,0.83265829]
[1737667951889,0.00029989,102520.0,102510.0,0.83280663]
[1737667952089,0.00229989,102520.0,102510.0,0.83280663]
[1737667952302,0.00029989,102520.0,102510.0,0.83280663]
[1737667953052,0.00029989,102520.0,102510.0,0.83380663]
[1737667953251,0.00029989,102520.0,102510.0,0.88380663]
[1737667953741,0.00029989,102520.0,102510.0,0.88480663]
[1737667954587,0.00029989,102520.0,102510.0,0.88280663]
[1737667954742,0.00029989,102520.0,102510.0,0.88480663]
[1737667954948,0.00029989,102520.0,102510.0,0.88880663]
[1737667955569,0.00029989,102520.0,102510.0,0.89580612]
[1737667956343,0.09784089,102520.0,102510.0,0.49390834]
[1737667956749,0.11784089,102520.0,102510.0,0.49390834]
[1737667957166,0.00029989,102520.0,102510.0,0.78745934]
[1737667957339,0.00029989,102520.0,102510.0,0.88480663]
[1737667957549,0.00029989,102520.0,102510.0,0.88280663]
[1737667957550,0.00229989,102520.0,102510.0,0.88280663]
[1737667957756,0.00229989,102520.0,102510.0,0.83280663]
[1737667958192,0.00229989,102520.0,102510.0,0.88280663]
[1737667958388,0.00029989,102520.0,102510.0,0.88280663]
[1737667958732,0.00229989,102520.0,102510.0,0.89780663]
[1737667959386,0.00129989,102520.0,102510.0,0.89180663]
[1737667959592,0.001,102520.0,102510.0,0.91480663]
[1737667959808,0.00029883,102530.0,102520.0,0.297541]
[1737667959976,0.00029883,102530.0,102520.0,0.95889829]
[1737667961354,0.00229883,102530.0,102520.0,0.97389829]
[1737667961825,0.00029883,102530.0,102520.0,0.95889829]
[1737667962040,0.00029883,102530.0,102520.0,0.96289829]
[1737667962256,0.00029883,102530.0,102520.0,0.91489829]
[1737667962506,0.00029883,102530.0,102520.0,0.91089829]
[1737667963348,0.00029883,102530.0,102520.0,0.98389829]
[1737667963482,0.00029883,102530.0,102520.0,0.98189829]
[1737667963690,0.00129883,102530.0,102520.0,0.99089829]
[1737667963947,0.00129883,102530.0,102520.0,0.76589829]
[1737667964199,0.00229883,102530.0,102520.0,0.69759829]
[1737667964412,0.00129883,102530.0,102520.0,0.83259829]
[1737667964633,0.00129883,102530.0,102520.0,0.83559829]
[1737667964843,0.00229883,102530.0,102520.0,0.84459829]
[1737667965046,0.00129883,102530.0,102520.0,0.83259829]
[1737667965480,0.00129883,102530.0,102520.0,0.84859829]
[1737667965481,0.00329883,102530.0,102520.0,0.84859829]
[1737667965709,0.00329883,102530.0,102520.0,0.89859829]
[1737667966759,0.00329883,102530.0,102520.0,0.88959829]
[1737667966760,0.00129883,102530.0,102520.0,0.88959829]
[1737667966964,0.00029968,102540.0,102520.0,0.84495729]
[1737667967177,0.00029968,102540.0,102530.0,0.39487929]
[1737667967469,0.02,102570.0,102560.0,0.442496]
[1737667967605,0.117494,102570.0,102560.0,0.63752]
[1737667967808,0.02,102570.0,102560.0,0.735023]
[1737667968022,0.02,102580.0,102560.0,0.92986129]
[1737667968225,0.097494,102570.0,102560.0,0.48752]
[1737667968441,0.19484129,102570.0,102560.0,0.48752]
[1737667968641,0.19533154,102570.0,102560.0,0.48752]
[1737667969060,0.19533154,102570.0,102560.0,0.48852]
[1737667969922,0.11798425,102570.0,102560.0,0.48952]
[1737667970127,0.11798425,102570.0,102560.0,0.63852]
[1737667970358,0.11798425,102570.0,102560.0,0.63752]
[1737667970572,0.19733154,102570.0,102560.0,0.48752]
[1737667970826,0.19833154,102570.0,102560.0,0.48752]
[1737667971043,0.26074154,102570.0,102560.0,0.48752]
[1737667971456,0.09998425,102570.0,102560.0,0.48752]
[1737667971662,0.10198425,102570.0,102560.0,0.48752]
[1737667971864,0.19733154,102570.0,102560.0,0.48752]
[1737667972070,0.25574154,102570.0,102560.0,0.48752]
[1737667972283,0.12098425,102570.0,102560.0,0.48752]
[1737667972902,0.02149025,102570.0,102560.0,0.585023]
[1737667973106,0.11898425,102570.0,102560.0,0.48752]
[1737667973341,0.11998425,102570.0,102560.0,0.48752]
[1737667973761,0.02249025,102570.0,102560.0,0.585023]
[1737667973964,0.02449025,102570.0,102560.0,0.585023]
[1737667974169,0.02649025,102570.0,102560.0,0.585023]
[1737667974811,0.02649025,102570.0,102560.0,0.735023]
[1737667975467,0.02449025,102570.0,102560.0,0.735023]
[1737667975665,0.00449025,102570.0,102560.0,0.735023]
[1737667976089,0.00049025,102570.0,102560.0,0.735023]
[1737667976293,0.00049025,102570.0,102560.0,0.736023]
[1737667976672,0.00049025,102570.0,102560.0,0.83237029]
[1737667976853,0.00249025,102570.0,102560.0,0.83237029]
[1737667977752,0.00349025,102570.0,102560.0,0.83237029]
[1737667978151,0.00349025,102570.0,102560.0,0.83938627]
[1737667978755,0.00349025,102570.0,102560.0,0.74203898]
[1737667979001,0.00349025,102570.0,102560.0,0.91618627]
[1737667979213,0.00349025,102570.0,102560.0,0.96618627]
[1737667979364,0.0043085,102570.0,102560.0,0.96618627]
[1737667980023,0.0033085,102570.0,102560.0,0.96618627]
[1737667980232,0.0033085,102570.0,102560.0,0.91618627]
[1737667980233,0.0013085,102570.0,102560.0,0.91618627]
[1737667980665,0.0013085,102570.0,102560.0,0.92018627]
[1737667980920,0.0013085,102570.0,102560.0,0.97018627]
[1737667981096,0.0013085,102570.0,102560.0,0.97118627]
[1737667981297,0.0013085,102570.0,102560.0,0.92118627]
[1737667981507,0.00049025,102570.0,102560.0,0.92118627]
[1737667981936,0.00049025,102570.0,102560.0,0.97118627]
[1737667983029,0.00049025,102570.0,102560.0,0.96718627]
[1737667983236,0.00049025,102570.0,102560.0,0.99641167]
[1737667983654,0.00149025,102570.0,102560.0,1.00541167]
[1737667983856,0.00149025,102570.0,102560.0,0.97518627]
[1737667984162,0.00149025,102570.0,102560.0,0.94459795]
[1737667984362,0.00178887,102570.0,102560.0,0.94459795]
[1737667984569,0.00178887,102570.0,102560.0,0.97484634]
[1737667984787,0.00178887,102570.0,102560.0,0.94459795]
[1737667985560,0.09928287,102570.0,102560.0,0.49652]
[1737667985716,0.11928287,102570.0,102560.0,0.49652]
[1737667986116,0.02178887,102570.0,102560.0,0.594023]
[1737667986332,0.02178887,102570.0,102560.0,0.49652]
[1737667986531,0.11928287,102570.0,102560.0,0.64452]
[1737667986738,0.00178887,102570.0,102560.0,0.742023]
[1737667986939,0.00078887,102570.0,102560.0,0.83337029]
[1737667987353,0.00578887,102570.0,102560.0,0.83237029]
[1737667987557,0.20063016,102570.0,102560.0,0.48752]
[1737667987777,0.33904016,102570.0,102560.0,0.48752]
[1737667987978,0.50588745,102570.0,102560.0,0.48752]
[1737667988195,0.5067057,102570.0,102560.0,0.48752]
[1737667988409,0.38835841,102570.0,102560.0,0.48752]
[1737667988621,0.40835841,102570.0,102560.0,0.48752]
[1737667988828,0.38835841,102570.0,102560.0,0.48752]
[1737667989037,0.40835841,102570.0,102560.0,0.48752]
[1737667989253,0.41035841,102570.0,102560.0,0.48752]
[1737667989461,0.41035841,102570.0,102560.0,0.231318]
[1737667989462,0.4287057,102570.0,102560.0,0.231318]
[1737667989670,0.32435841,102570.0,102560.0,0.231318]
[1737667989889,0.30235841,102570.0,102560.0,0.231318]
[1737667990094,0.32635841,102570.0,102560.0,0.231318]
[1737667990310,0.37635841,102570.0,102560.0,0.231318]
[1737667990513,0.31154016,102570.0,102560.0,0.232318]
[1737667990726,0.12928287,102570.0,102560.0,0.232318]
[1737667990932,0.11228287,102570.0,102560.0,0.329821]
[1737667991134,0.13228287,102570.0,102560.0,0.329821]
[1737667991341,0.11228287,102570.0,102560.0,0.329821]
[1737667991548,0.01478887,102570.0,102560.0,0.329821]
[1737667991761,0.01478887,102570.0,102560.0,0.479821]
[1737667991962,0.01478887,102570.0,102560.0,0.57716829]
[1737667992175,0.13228287,102570.0,102560.0,0.382318]
[1737667992379,0.13228287,102570.0,102560.0,0.479821]
[1737667992584,0.03178887,102570.0,102560.0,0.479821]
[1737667992787,0.12028287,102570.0,102560.0,0.381318]
[1737667993091,0.19763016,102570.0,102560.0,0.231318]
[1737667993269,0.20163016,102570.0,102560.0,0.231318]
[1737667993527,0.12228287,102570.0,102560.0,0.231318]
[1737667994102,0.1231581,102570.0,102560.0,0.231318]
[1737667994246,0.0066641,102570.0,102560.0,0.328821]
[1737667994466,0.0276641,102570.0,102560.0,0.478821]
[1737667994910,0.0076641,102570.0,102560.0,0.57616829]
[1737667995497,0.0076641,102570.0,102560.0,0.65716829]
[1737667995910,0.0066641,102570.0,102560.0,0.75486829]
[1737667996132,0.0056641,102570.0,102560.0,0.75486829]
[1737667996375,0.00078887,102570.0,102560.0,0.77986829]
[1737667996578,0.00078887,102570.0,102560.0,0.75686829]
[1737667996779,0.00078887,102570.0,102560.0,0.75486829]
[1737667996996,0.00487523,102580.0,102570.0,0.297494]
[1737667997203,0.00487523,102580.0,102570.0,1.13865963]
[1737667997400,0.00487523,102580.0,102570.0,1.08865963]
[1737667997602,0.00487523,102580.0,102570.0,1.13865963]
[1737667998161,0.02029883,102610.0,102600.0,0.097465]
[1737667998975,0.00029883,102610.0,102600.0,0.19481229]
[1737667999131,0.00029883,102610.0,102600.0,0.98464229]
[1737667999335,0.00029883,102610.0,102600.0,1.18464229]
[1737667999820,0.00639,102630.0,102610.0,0.05]
[1737668000035,0.00639,102630.0,102620.0,0.42019329]
[1737668000262,0.00639,102630.0,102620.0,1.21363329]
[1737668000492,0.123827,102630.0,102620.0,0.96884]
[1737668000715,0.123827,102630.0,102620.0,1.066286]
[1737668000943,0.00639,102630.0,102620.0,1.16378163]
[1737668001243,0.00739,102630.0,102620.0,1.16378163]
[1737668001720,0.02,102660.0,102640.0,0.0792]
[1737668001960,0.097418,102650.0,102640.0,0.74334]
[1737668002159,0.117418,102650.0,102640.0,0.74334]
[1737668002365,0.097418,102650.0,102640.0,0.74334]
[1737668003029,0.19476529,102650.0,102640.0,0.74334]
[1737668003176,0.19676529,102650.0,102640.0,0.74334]
[1737668003765,0.21976529,102650.0,102640.0,0.74334]
[1737668003980,0.21776529,102650.0,102640.0,0.74334]
[1737668004229,0.21776529,102650.0,102640.0,0.68624]
[1737668004230,0.36776529,102650.0,102640.0,0.68624]
[1737668004437,0.43087529,102650.0,102640.0,0.51688728]
[1737668004654,0.56337258,102650.0,102640.0,0.001]
[1737668005072,0.46602529,102650.0,102640.0,0.001]
[1737668005307,0.46902529,102650.0,102640.0,0.001]
[1737668005513,0.46902529,102650.0,102640.0,1e-06]
[1737668005724,0.120437,102630.0,102620.0,0.00014834]
[1737668005929,0.02,102580.0,102570.0,0.046]
[1737668006137,0.117484,102580.0,102570.0,0.04614848]
[1737668006547,0.117484,102580.0,102570.0,0.29364248]
[1737668006754,0.02,102580.0,102570.0,0.29364248]
[1737668006955,0.487355,102600.0,102580.0,0.097484]
[1737668007162,0.02,102590.0,102580.0,0.442451]
[1737668007318,0.38975829,102600.0,102580.0,0.292451]
[1737668007551,0.60470129,102600.0,102580.0,0.292451]
[1737668007782,0.097475,102590.0,102580.0,0.15]
[1737668008958,0.117475,102590.0,102580.0,0.15]
[1737668009350,0.02,102590.0,102580.0,0.247484]
[1737668009554,0.02,102590.0,102580.0,0.442453]
[1737668010411,0.32038007,102600.0,102590.0,0.15]
[1737668011018,4e-05,102590.0,102580.0,0.194969]
[1737668011215,4e-05,102590.0,102580.0,0.292453]
[1737668012026,0.00104,102590.0,102580.0,0.292453]
[1737668012433,0.00304,102590.0,102580.0,0.292453]
[1737668012897,4e-05,102590.0,102580.0,0.53980029]
[1737668013105,4e-05,102590.0,102580.0,0.67040029]
[1737668013309,4e-05,102590.0,102580.0,0.72080029]
[1737668013951,0.02,102630.0,102620.0,0.097446]
[1737668014362,0.02,102630.0,102620.0,0.247446]
[1737668014579,0.02,102640.0,102630.0,0.247437]
[1737668015013,0.21132442,102650.0,102630.0,0.247437]
[1737668015217,0.21131642,102650.0,102640.0,0.247427]
[1737668015842,0.11389842,102650.0,102640.0,0.247427]
[1737668016271,0.21131642,102650.0,102640.0,0.15]
[1737668016683,0.02333842,102650.0,102640.0,0.377727]
[1737668016890,0.02133842,102650.0,102640.0,0.377727]
[1737668017114,0.11875642,102650.0,102640.0,0.377727]
[1737668017316,0.02333842,102650.0,102640.0,0.377727]
[1737668017739,0.12075642,102650.0,102640.0,0.2803]
[1737668018155,0.12075642,102650.0,102640.0,0.377727]
[1737668018383,0.12075642,102650.0,102640.0,0.2803]
[1737668018570,0.11875642,102650.0,102640.0,0.377727]
[1737668018798,0.11775642,102650.0,102640.0,0.378727]
[1737668019039,0.02133842,102650.0,102640.0,0.378727]
[1737668019249,0.00133842,102650.0,102640.0,0.377727]
[1737668019451,0.00133842,102650.0,102640.0,0.47607429]
[1737668019672,0.00033842,102650.0,102640.0,0.47607429]
[1737668019885,0.00033842,102650.0,102640.0,0.47707429]
[1737668020344,0.00033842,102650.0,102640.0,0.47507429]
[1737668020551,0.02033842,102650.0,102640.0,0.377727]
[1737668020747,0.02033842,102650.0,102640.0,0.378727]
[1737668021225,0.00033842,102650.0,102640.0,0.378727]
[1737668021430,0.00033842,102650.0,102640.0,0.47607429]
[1737668021844,0.00033842,102650.0,102640.0,0.47507429]
[1737668022049,0.00033842,102650.0,102640.0,0.47607429]
[1737668022267,0.00033842,102650.0,102640.0,0.47707429]
[1737668022474,0.00033842,102650.0,102640.0,0.47607429]
[1737668022667,0.00033842,102650.0,102640.0,0.47507429]
[1737668022803,0.00033842,102650.0,102640.0,0.47707429]
[1737668023013,0.00033842,102650.0,102640.0,0.47607429]
[1737668023218,0.00033842,102650.0,102640.0,0.47507429]
[1737668023674,0.00033842,102650.0,102640.0,0.52607429]
[1737668024294,0.00033842,102650.0,102640.0,0.47607429]
[1737668024902,0.00033842,102650.0,102640.0,0.47507429]
[1737668025138,0.00033842,102650.0,102640.0,0.47707429]
[1737668025511,0.00033842,102650.0,102640.0,0.52807429]
[1737668025714,0.00033842,102650.0,102640.0,0.52607429]
[1737668026201,0.00033842,102650.0,102640.0,0.52707429]
[1737668026511,0.00033842,102650.0,102640.0,0.52607429]
[1737668026626,0.00033842,102650.0,102640.0,0.52507429]
[1737668026863,0.00033842,102650.0,102640.0,0.55207429]
[1737668027097,0.02029862,102680.0,102670.0,0.327599]
[1737668027347,0.02029862,102680.0,102670.0,0.376899]
[1737668027591,0.00029862,102680.0,102670.0,0.376899]
[1737668028051,0.00029862,102680.0,102670.0,0.47424629]
[1737668028296,0.00078926,102680.0,102670.0,0.47424629]
[1737668028526,0.00078926,102680.0,102670.0,0.96124629]
[1737668028764,0.00078926,102680.0,102670.0,1.01224629]
[1737668028967,0.00078926,102680.0,102670.0,1.03524629]
[1737668029813,0.00178926,102680.0,102670.0,1.04324629]
[1737668030051,0.00029485,102680.0,102670.0,1.30224629]
[1737668030689,0.00035862,102690.0,102680.0,0.320389]
[1737668030913,0.00035862,102690.0,102680.0,0.90483477]
[1737668031125,0.00035862,102690.0,102680.0,0.83183477]
[1737668031974,0.00035862,102690.0,102680.0,0.88183477]
[1737668032470,0.00035862,102690.0,102680.0,0.83183477]
[1737668032880,0.00135862,102690.0,102680.0,0.83883477]
[1737668033048,0.00135862,102690.0,102680.0,0.84783477]
[1737668033203,0.00035862,102690.0,102680.0,0.83183477]
[1737668033440,0.00035862,102690.0,102680.0,0.83483477]
[1737668033661,0.00035862,102690.0,102680.0,0.84183477]
[1737668035122,0.00035862,102690.0,102680.0,0.8497603]
[1737668035589,0.00035862,102690.0,102680.0,0.8997603]
[1737668036715,0.00035862,102690.0,102680.0,0.8497603]
[1737668036942,0.00035862,102690.0,102680.0,0.8727603]
[1737668037078,0.00035862,102690.0,102680.0,0.9227603]
[1737668037320,0.00035862,102690.0,102680.0,0.69183477]
[1737668037596,0.00035862,102690.0,102680.0,0.84183477]
[1737668040083,0.00035862,102690.0,102680.0,0.88883477]
[1737668040296,0.00035862,102690.0,102680.0,0.84083477]
[1737668040741,0.00035862,102690.0,102680.0,0.89083477]
[1737668041198,0.00035862,102690.0,102680.0,0.91383477]
[1737668041626,0.00035862,102690.0,102680.0,1.04053477]
[1737668041873,0.00029842,102700.0,102690.0,0.44388]
[1737668042089,0.00029842,102700.0,102690.0,1.02812729]
[1737668042297,4.2e-07,102700.0,102690.0,1.02812729]
[1737668042507,0.00029925,102740.0,102730.0,0.247342]
[1737668042709,0.00029925,102740.0,102730.0,0.83139929]
[1737668042931,0.00029925,102740.0,102730.0,0.88139929]
[1737668043165,0.00029904,102760.0,102750.0,0.297323]
[1737668043387,0.00029904,102760.0,102750.0,1.01189029]
[1737668043604,0.00029904,102760.0,102750.0,1.03489029]
[1737668043820,0.00029904,102760.0,102750.0,0.96203877]
[1737668044027,0.02029904,102760.0,102750.0,0.86469148]
[1737668044241,0.00029904,102760.0,102750.0,0.86469148]
[1737668044461,0.00029904,102760.0,102750.0,0.96203877]
[1737668045314,0.00029904,102760.0,102750.0,0.96303877]
[1737668045545,0.02029904,102760.0,102750.0,0.63776848]
[1737668045797,0.09761304,102760.0,102750.0,0.63776848]
[1737668046303,0.09761304,102760.0,102750.0,0.63676848]
[1737668046512,0.09761304,102760.0,102750.0,0.63776848]
[1737668046914,0.09761304,102760.0,102750.0,0.73509148]
[1737668047121,0.02029904,102760.0,102750.0,0.73609148]
[1737668047331,0.02029904,102760.0,102750.0,0.83343877]
[1737668047332,0.00029904,102760.0,102750.0,0.83343877]
[1737668047542,0.00029904,102760.0,102750.0,0.83443877]
[1737668047957,0.00029904,102760.0,102750.0,1.03313877]
[1737668048161,0.00029904,102760.0,102750.0,1.03413877]
[1737668048801,0.00029904,102760.0,102750.0,1.03313877]
[1737668049201,0.00029904,102760.0,102750.0,1.03713877]
[1737668049555,0.00029904,102760.0,102750.0,1.03113877]
[1737668049742,0.00029904,102760.0,102750.0,0.98113877]
[1737668049948,0.00029904,102760.0,102750.0,0.99113877]
[1737668050371,0.00029904,102760.0,102750.0,1.04113877]
[1737668050569,0.00029904,102760.0,102750.0,1.03413877]
[1737668050998,0.00029904,102760.0,102750.0,1.28513877]
[1737668051245,0.00029904,102760.0,102750.0,1.23513877]
[1737668051773,0.00029904,102760.0,102750.0,1.23713877]
[1737668052014,0.00029904,102760.0,102750.0,1.03713877]
[1737668052223,0.00029904,102760.0,102750.0,1.03313877]
[1737668052391,0.00097072,102760.0,102750.0,1.04013877]
[1737668052594,6.106e-05,102760.0,102750.0,1.03313877]
[1737668053044,6.106e-05,102760.0,102750.0,1.28513877]
[1737668053243,6.106e-05,102760.0,102750.0,1.28113877]
[1737668053453,0.00029904,102770.0,102760.0,0.443814]
[1737668053654,0.00029904,102770.0,102760.0,0.54116129]
[1737668053899,0.00029904,102770.0,102760.0,1.02773129]
[1737668054078,0.00029904,102770.0,102760.0,0.97773129]
[1737668054297,0.00029904,102770.0,102760.0,0.95473129]
[1737668054513,0.00029904,102770.0,102760.0,0.80473129]
[1737668054715,0.00029904,102770.0,102760.0,0.68123129]
[1737668054716,0.02029904,102770.0,102760.0,0.68123129]
[1737668054889,0.02029904,102770.0,102760.0,0.83123129]
[1737668055094,0.02129904,102770.0,102760.0,0.84023129]
[1737668055497,0.02029904,102770.0,102760.0,0.83123129]
[1737668055700,0.09760304,102770.0,102760.0,0.49557]
[1737668055855,0.09760304,102770.0,102760.0,0.49857]
[1737668056055,0.19605033,102770.0,102760.0,0.48957]
[1737668056342,0.21605033,102770.0,102760.0,0.49657]
[1737668056565,0.21605033,102770.0,102760.0,0.01]
[1737668056944,0.21905033,102770.0,102760.0,0.01]
[1737668057155,0.26905033,102770.0,102760.0,0.011]
[1737668057402,0.097314,102760.0,102750.0,0.00014848]
[1737668057648,0.19466129,102760.0,102750.0,0.00014848]
[1737668058257,0.097314,102760.0,102750.0,0.00014848]
[1737668058460,0.117323,102750.0,102740.0,0.24728308]